fUST/lending_fUST_20250628
["ID","MTS","AMOUNT","RATE_DAILY","PERIOD"]
[368285731,1751092240163,-460.0,0.00019178,2]
[368285732,1751092240173,-410.25314996,0.00019178,2]
[368285733,1751092240183,-460.0,0.00019178,2]
[368285734,1751092240193,-433.58924758,0.00019178,2]
[368285735,1751092240202,-460.0,0.00019178,2]
[368285736,1751092240211,-460.0,0.00019178,2]
[368285737,1751092240220,-855.13,0.00019178,2]
[368285738,1751092240230,-1621.43,0.00019178,2]
[368285739,1751092240239,-460.0,0.00019178,2]
[368285740,1751092240249,-460.0,0.00019178,2]
[368285741,1751092240258,-460.0,0.00019178,2]
[368285742,1751092240267,-963.72,0.00019178,2]
[368285744,1751092240277,-460.0,0.00019178,2]
[368285745,1751092240286,-222.19707807,0.00019178,2]
[368285746,1751092240296,-407.71719772,0.00019178,2]
[368285747,1751092240305,-471.02349585,0.00019178,2]
[368285748,1751092240315,-460.0,0.00019178,2]
[368285749,1751092240325,-460.0,0.00019178,2]
[368285751,1751092240335,-460.0,0.00019178,2]
[368285753,1751092240345,-460.0,0.00019178,2]
[368285755,1751092240354,-460.0,0.00019178,2]
[368285757,1751092240364,-460.0,0.00019178,2]
[368285759,1751092240372,-460.0,0.00019178,2]
[368285761,1751092240382,-460.0,0.00019178,2]
[368285763,1751092240392,-460.0,0.00019178,2]
[368285765,1751092240402,-424.03476174,0.00019178,2]
[368285766,1751092240411,-460.0,0.00019178,2]
[368285767,1751092240420,-460.0,0.00019178,2]
[368285768,1751092240430,-460.0,0.00019178,2]
[368285769,1751092240440,-460.0,0.00019178,2]
[368285770,1751092240449,-2847.84,0.00019178,2]
[368285771,1751092240458,-215.1708948,0.00019178,2]
[368285772,1751092240468,-460.0,0.00019178,2]
[368285773,1751092240478,-460.0,0.00019178,2]
[368285774,1751092240487,-688.06,0.00019178,2]
[368285775,1751092240496,-762.68,0.00019178,2]
[368285776,1751092240506,-637.58,0.00019178,2]
[368285777,1751092240515,-434.32633136,0.00019178,2]
[368285778,1751092240525,-486.31573245,0.00019178,2]
[368285779,1751092240535,-460.0,0.00019178,2]
[368285780,1751092240545,-460.0,0.00019178,2]
[368285781,1751092240554,-2645.71,0.00019178,2]
[368285782,1751092240563,-460.0,0.00019178,2]
[368285783,1751092240573,-460.0,0.00019178,2]
[368285784,1751092240583,-460.0,0.00019178,2]
[368285785,1751092240593,-460.0,0.00019178,2]
[368285786,1751092240603,-460.0,0.00019178,2]
[368285788,1751092240612,-460.0,0.00019178,2]
[368285789,1751092240621,-749.34,0.00019178,2]
[368285791,1751092240630,-460.0,0.00019178,2]
[368285792,1751092240639,-500.0,0.00019178,2]
[368285793,1751092240647,-460.0,0.00019178,2]
[368285794,1751092240656,-2283.61,0.00019178,2]
[368285795,1751092240664,-460.0,0.00019178,2]
[368285796,1751092240673,-460.0,0.00019178,2]
[368285797,1751092240682,-460.0,0.00019178,2]
[368285798,1751092240691,-460.0,0.00019178,2]
[368285799,1751092240699,-506.5045955,0.00019178,2]
[368285800,1751092240708,-460.0,0.00019178,2]
[368285801,1751092240718,-460.0,0.00019178,2]
[368285802,1751092240727,-460.0,0.00019178,2]
[368285803,1751092240737,-460.0,0.00019178,2]
[368285804,1751092240746,-1062.61,0.00019178,2]
[368285805,1751092240755,-460.0,0.00019178,2]
[368285806,1751092240764,-460.0,0.00019178,2]
[368285807,1751092240777,-460.0,0.00019178,2]
[368285808,1751092240787,-460.0,0.00019178,2]
[368285809,1751092240796,-463.54,0.00019178,2]
[368285810,1751092240805,-334.15396467,0.00019178,2]
[368285811,1751092240816,-460.0,0.00019178,2]
[368285812,1751092240826,-460.0,0.00019178,2]
[368285813,1751092240835,-460.0,0.00019178,2]
[368285814,1751092240845,-460.0,0.00019178,2]
[368285815,1751092240855,-460.0,0.00019178,2]
[368285816,1751092240864,-503.12,0.00019178,2]
[368285817,1751092240873,-460.0,0.00019178,2]
[368285818,1751092240883,-460.0,0.00019178,2]
[368285819,1751092240892,-375.18136876,0.00019178,2]
[368285820,1751092240901,-546.11,0.00019178,2]
[368285821,1751092240910,-460.0,0.00019178,2]
[368285822,1751092240919,-2827.27,0.00019178,2]
[368285823,1751092240928,-460.0,0.00019178,2]
[368285824,1751092240937,-460.0,0.00019178,2]
[368285825,1751092240947,-460.0,0.00019178,2]
[368285826,1751092240956,-460.0,0.00019178,2]
[368285827,1751092240965,-460.0,0.00019178,2]
[368285828,1751092240974,-2063.9,0.00019178,2]
[368285829,1751092240983,-460.0,0.00019178,2]
[368285830,1751092240992,-597.96,0.00019178,2]
[368285831,1751092241001,-1025.68,0.00019178,2]
[368285832,1751092241011,-462.2108744,0.00019178,2]
[368285833,1751092241020,-460.0,0.00019178,2]
[368285834,1751092241029,-460.0,0.00019178,2]
[368285835,1751092241038,-460.0,0.00019178,2]
[368285836,1751092241048,-460.0,0.00019178,2]
[368285837,1751092241057,-500.0,0.00019178,2]
[368285838,1751092241066,-500.0,0.00019178,2]
[368285839,1751092241075,-500.0,0.00019178,2]
[368285840,1751092241085,-500.0,0.00019178,2]
[368285842,1751092241094,-603.22383629,0.00019178,2]
[368285844,1751092241103,-460.0,0.00019178,2]
[368285846,1751092241112,-460.0,0.00019178,2]
[368285847,1751092241121,-460.0,0.00019178,2]
[368285848,1751092241131,-3087.12,0.00019178,2]
[368285849,1751092241140,-758.94,0.00019178,2]
[368285850,1751092241150,-331.3828315,0.00019178,2]
[368285851,1751092241159,-460.0,0.00019178,2]
[368285852,1751092241169,-460.0,0.00019178,2]
[368285853,1751092241178,-460.0,0.00019178,2]
[368285854,1751092241188,-460.0,0.00019178,2]
[368285855,1751092241198,-460.0,0.00019178,2]
[368285856,1751092241207,-1845.16,0.00019178,2]
[368285857,1751092241216,-465.43920826,0.00019178,2]
[368285858,1751092241225,-460.0,0.00019178,2]
[368285859,1751092241235,-460.0,0.00019178,2]
[368285860,1751092241244,-1876.63,0.00019178,2]
[368285861,1751092241253,-479.92337862,0.00019178,2]
[368285862,1751092241263,-460.0,0.00019178,2]
[368285863,1751092241272,-460.0,0.00019178,2]
[368285864,1751092241281,-3961.88,0.00019178,2]
[368285865,1751092241290,-460.0,0.00019178,2]
[368285866,1751092241300,-460.0,0.00019178,2]
[368285867,1751092241309,-460.0,0.00019178,2]
[368285868,1751092241319,-738.64,0.00019178,2]
[368285869,1751092241328,-460.0,0.00019178,2]
[368285870,1751092241338,-460.0,0.00019178,2]
[368285871,1751092241347,-460.0,0.00019178,2]
[368285872,1751092241356,-460.0,0.00019178,2]
[368285873,1751092241366,-460.0,0.00019178,2]
[368285874,1751092241375,-1261.08,0.00019178,2]
[368285875,1751092241384,-460.0,0.00019178,2]
[368285876,1751092241394,-1780.21,0.00019178,2]
[368285877,1751092241404,-460.0,0.00019178,2]
[368285878,1751092241413,-466.32839735,0.00019178,2]
[368285879,1751092241422,-460.0,0.00019178,2]
[368285880,1751092241431,-460.0,0.00019178,2]
[368285881,1751092241441,-460.0,0.00019178,2]
[368285882,1751092241450,-460.0,0.00019178,2]
[368285883,1751092241459,-830.04,0.00019178,2]
[368285884,1751092241469,-460.0,0.00019178,2]
[368285885,1751092241479,-460.0,0.00019178,2]
[368285886,1751092241488,-460.0,0.00019178,2]
[368285887,1751092241497,-460.0,0.00019178,2]
[368285888,1751092241507,-460.0,0.00019178,2]
[368285889,1751092241517,-493.72,0.00019178,2]
[368285890,1751092241526,-460.0,0.00019178,2]
[368285891,1751092241535,-460.0,0.00019178,2]
[368285892,1751092241545,-460.0,0.00019178,2]
[368285893,1751092241555,-3913.47,0.00019178,2]
[368285894,1751092241564,-1917.93,0.00019178,2]
[368285895,1751092241573,-460.0,0.00019178,2]
[368285896,1751092241583,-460.0,0.00019178,2]
[368285897,1751092241592,-460.0,0.00019178,2]
[368285898,1751092241601,-460.0,0.00019178,2]
[368285899,1751092241610,-462.790081,0.00019178,2]
[368285900,1751092241620,-460.0,0.00019178,2]
[368285901,1751092241629,-462.31480342,0.00019178,2]
[368285902,1751092241638,-460.0,0.00019178,2]
[368285903,1751092241647,-460.0,0.00019178,2]
[368285904,1751092241657,-486.94,0.00019178,2]
[368285905,1751092241666,-550.23712706,0.00019178,2]
[368285906,1751092241675,-460.0,0.00019178,2]
[368285907,1751092241684,-460.0,0.00019178,2]
[368285908,1751092241694,-460.0,0.00019178,2]
[368285909,1751092241703,-464.98198905,0.00019178,2]
[368285910,1751092241712,-460.0,0.00019178,2]
[368285911,1751092241721,-460.0,0.00019178,2]
[368285912,1751092241730,-462.31960721,0.00019178,2]
[368285913,1751092241739,-406.50192398,0.00019178,2]
[368285914,1751092241748,-473.28005472,0.00019178,2]
[368285915,1751092241757,-1763.75,0.00019178,2]
[368285916,1751092241766,-1417.63,0.00019178,2]
[368285917,1751092241778,-516.98269427,0.00019178,2]
[368285918,1751092241787,-460.0,0.00019178,2]
[368285919,1751092241796,-1517.54,0.00019178,2]
[368285920,1751092241805,-460.0,0.00019178,2]
[368285921,1751092241815,-178.121099,0.00019178,2]
[368285922,1751092241826,-151.37515572,0.0001926,2]
[368285923,1751092241836,-1597.5425311,0.00019352,2]
[368285924,1751092241846,-463.93424586,0.00019452,2]
[368285925,1751092241856,-259.40644674,0.00019452,2]
[368285926,1751092241866,-461.99643723,0.00019452,2]
[368285927,1751092241875,-460.0,0.00019452,2]
[368285928,1751092241884,-460.0,0.00019452,2]
[368285929,1751092241893,-460.0,0.00019452,2]
[368285930,1751092241903,-460.0,0.00019452,2]
[368285931,1751092241912,-460.0,0.00019452,2]
[368285932,1751092241921,-460.0,0.00019452,2]
[368285933,1751092241931,-360.2096067,0.00019452,2]
[368285934,1751092241940,-460.0,0.00019452,2]
[368285935,1751092241949,-460.0,0.00019452,2]
[368285936,1751092241958,-460.0,0.00019452,2]
[368285937,1751092241967,-460.0,0.00019452,2]
[368285938,1751092241976,-460.0,0.00019452,2]
[368285939,1751092241985,-460.0,0.00019452,2]
[368285940,1751092241994,-460.0,0.00019452,2]
[368285941,1751092242003,-500.0,0.00019452,2]
[368285942,1751092242012,-472.30094572,0.00019452,2]
[368285943,1751092242021,-460.0,0.00019452,2]
[368285944,1751092242030,-475.67364333,0.00019452,2]
[368285945,1751092242040,-460.0,0.00019452,2]
[368285946,1751092242049,-424.98801689,0.00019452,2]
[368285947,1751092242058,-460.0,0.00019452,2]
[368285948,1751092242067,-460.0,0.00019452,2]
[368285949,1751092242076,-315.40342881,0.00019452,2]
[368285950,1751092242085,-460.0,0.00019452,2]
[368285951,1751092242094,-500.0,0.00019452,2]
[368285952,1751092242104,-544.66,0.00019452,2]
[368285953,1751092242113,-469.35468535,0.00019452,2]
[368285954,1751092242123,-460.0,0.00019452,2]
[368285955,1751092242132,-460.0,0.00019452,2]
[368285956,1751092242141,-460.0,0.00019452,2]
[368285957,1751092242150,-460.0,0.00019452,2]
[368285958,1751092242160,-460.0,0.00019452,2]
[368285959,1751092242169,-783.34,0.00019452,2]
[368285960,1751092242179,-461.10861081,0.00019452,2]
[368285961,1751092242188,-460.0,0.00019452,2]
[368285962,1751092242197,-460.0,0.00019452,2]
[368285963,1751092242207,-411.63573739,0.00019452,2]
[368285964,1751092242216,-460.0,0.00019452,2]
[368285965,1751092242226,-460.0,0.00019452,2]
[368285966,1751092242235,-460.0,0.00019452,2]
[368285967,1751092242244,-487.1086644,0.00019452,2]
[368285968,1751092242254,-194.20909398,0.00019452,2]
[368285969,1751092242264,-460.0,0.00019452,2]
[368285970,1751092242273,-436.47390211,0.00019452,2]
[368285971,1751092242282,-460.0,0.00019452,2]
[368285972,1751092242292,-315.88111285,0.00019452,2]
[368285973,1751092242301,-460.0,0.00019452,2]
[368285974,1751092242310,-460.0,0.00019452,2]
[368285975,1751092242320,-460.0,0.00019452,2]
[368285976,1751092242329,-460.0,0.00019452,2]
[368285977,1751092242339,-460.0,0.00019452,2]
[368285978,1751092242349,-460.0,0.00019452,2]
[368285979,1751092242359,-574.57808278,0.00019452,2]
[368285980,1751092242368,-460.0,0.00019452,2]
[368285981,1751092242377,-460.0,0.00019452,2]
[368285982,1751092242387,-460.0,0.00019452,2]
[368285983,1751092242397,-460.0,0.00019452,2]
[368285984,1751092242407,-460.0,0.00019452,2]
[368285985,1751092242416,-435.61222554,0.00019452,2]
[368285986,1751092242426,-855.13,0.00019452,2]
[368285987,1751092242436,-1621.43,0.00019452,2]
[368285988,1751092242445,-460.0,0.00019452,2]
[368285989,1751092242454,-460.0,0.00019452,2]
[368285990,1751092242464,-460.0,0.00019452,2]
[368285991,1751092242473,-963.72,0.00019452,2]
[368285992,1751092242482,-460.0,0.00019452,2]
[368285993,1751092242491,-460.0,0.00019452,2]
[368285994,1751092242500,-460.0,0.00019452,2]
[368285995,1751092242510,-356.27553127,0.00019452,2]
[368285996,1751092242519,-460.0,0.00019452,2]
[368285997,1751092242528,-460.0,0.00019452,2]
[368285998,1751092242537,-460.0,0.00019452,2]
[368285999,1751092242546,-460.0,0.00019452,2]
[368286000,1751092242556,-478.6084764,0.00019452,2]
[368286001,1751092242565,-460.0,0.00019452,2]
[368286002,1751092242574,-460.0,0.00019452,2]
[368286003,1751092242703,-419.75773258,0.00019452,2]
[368286004,1751092242713,-460.0,0.00019452,2]
[368286005,1751092242722,-2847.84,0.00019452,2]
[368286006,1751092242732,-460.0,0.00019452,2]
[368286007,1751092242741,-762.68,0.00019452,2]
[368286008,1751092242750,-688.06,0.00019452,2]
[368286009,1751092242760,-637.58,0.00019452,2]
[368286010,1751092242771,-460.0,0.00019452,2]
[368286011,1751092242781,-460.0,0.00019452,2]
[368286012,1751092242790,-2645.71,0.00019452,2]
[368286013,1751092242799,-460.0,0.00019452,2]
[368286014,1751092242811,-360.0,0.00019452,2]
[368286015,1751092242820,-460.0,0.00019452,2]
[368286016,1751092242830,-460.0,0.00019452,2]
[368286017,1751092242840,-460.0,0.00019452,2]
[368286018,1751092242850,-460.0,0.00019452,2]
[368286019,1751092242860,-749.34,0.00019452,2]
[368286020,1751092242870,-460.0,0.00019452,2]
[368286021,1751092242879,-460.0,0.00019452,2]
[368286022,1751092242889,-2283.61,0.00019452,2]
[368286023,1751092242898,-460.0,0.00019452,2]
[368286024,1751092242907,-469.89880938,0.00019452,2]
[368286025,1751092242917,-460.0,0.00019452,2]
[368286026,1751092242927,-460.0,0.00019452,2]
[368286027,1751092242936,-460.0,0.00019452,2]
[368286028,1751092242946,-460.0,0.00019452,2]
[368286029,1751092242955,-460.0,0.00019452,2]
[368286030,1751092242965,-1062.61,0.00019452,2]
[368286031,1751092242974,-500.0,0.00019452,2]
[368286032,1751092242983,-460.0,0.00019452,2]
[368286033,1751092242993,-460.0,0.00019452,2]
[368286034,1751092243002,-460.0,0.00019452,2]
[368286035,1751092243012,-460.0,0.00019452,2]
[368286036,1751092243022,-460.0,0.00019452,2]
[368286037,1751092243031,-460.0,0.00019452,2]
[368286038,1751092243041,-503.12,0.00019452,2]
[368286039,1751092243050,-460.0,0.00019452,2]
[368286040,1751092243060,-460.0,0.00019452,2]
[368286041,1751092243069,-546.11,0.00019452,2]
[368286042,1751092243079,-460.0,0.00019452,2]
[368286043,1751092243088,-2827.27,0.00019452,2]
[368286044,1751092243098,-460.0,0.00019452,2]
[368286045,1751092243107,-425.10841771,0.00019452,2]
[368286046,1751092243116,-460.0,0.00019452,2]
[368286048,1751092243126,-460.0,0.00019452,2]
[368286049,1751092243135,-460.0,0.00019452,2]
[368286051,1751092243145,-2063.9,0.00019452,2]
[368286052,1751092243154,-597.96,0.00019452,2]
[368286054,1751092243163,-1025.68,0.00019452,2]
[368286055,1751092243177,-559.23673964,0.00019452,2]
[368286056,1751092243186,-460.0,0.00019452,2]
[368286057,1751092243196,-460.0,0.00019452,2]
[368286058,1751092243205,-460.0,0.00019452,2]
[368286060,1751092243215,-460.0,0.00019452,2]
[368286062,1751092243224,-3087.12,0.00019452,2]
[368286063,1751092243233,-758.94,0.00019452,2]
[368286065,1751092243242,-181.64323192,0.00019452,2]
[368286066,1751092243251,-460.0,0.00019452,2]
[368286067,1751092243260,-460.0,0.00019452,2]
[368286068,1751092243270,-460.0,0.00019452,2]
[368286069,1751092243279,-460.0,0.00019452,2]
[368286070,1751092243288,-1845.16,0.00019452,2]
[368286071,1751092243300,-460.0,0.00019452,2]
[368286072,1751092243310,-190.19182746,0.00019452,2]
[368286073,1751092243319,-1876.63,0.00019452,2]
[368286074,1751092243328,-460.0,0.00019452,2]
[368286075,1751092243337,-460.0,0.00019452,2]
[368286076,1751092243347,-3961.88,0.00019452,2]
[368286077,1751092243356,-460.0,0.00019452,2]
[368286078,1751092243366,-460.0,0.00019452,2]
[368286079,1751092243375,-738.64,0.00019452,2]
[368286080,1751092243384,-460.0,0.00019452,2]
[368286081,1751092243393,-479.40271446,0.00019452,2]
[368286082,1751092243403,-291.04696635,0.00019452,2]
[368286083,1751092243412,-460.0,0.00019452,2]
[368286084,1751092243422,-1261.08,0.00019452,2]
[368286085,1751092243431,-460.0,0.00019452,2]
[368286086,1751092243440,-1780.21,0.00019452,2]
[368286087,1751092243449,-460.0,0.00019452,2]
[368286088,1751092243458,-201.9969646,0.00019452,2]
[368286089,1751092243467,-460.0,0.00019452,2]
[368286090,1751092243477,-460.0,0.00019452,2]
[368286091,1751092243486,-830.04,0.00019452,2]
[368286092,1751092243495,-460.0,0.00019452,2]
[368286093,1751092243505,-460.0,0.00019452,2]
[368286094,1751092243515,-460.0,0.00019452,2]
[368286095,1751092243524,-460.0,0.00019452,2]
[368286096,1751092243533,-493.72,0.00019452,2]
[368286097,1751092243543,-460.0,0.00019452,2]
[368286098,1751092243552,-460.0,0.00019452,2]
[368286099,1751092243562,-3913.47,0.00019452,2]
[368286100,1751092243571,-1917.93,0.00019452,2]
[368286101,1751092243580,-460.0,0.00019452,2]
[368286102,1751092243589,-460.0,0.00019452,2]
[368286103,1751092243598,-460.0,0.00019452,2]
[368286104,1751092243607,-460.0,0.00019452,2]
[368286105,1751092243617,-460.0,0.00019452,2]
[368286106,1751092243626,-486.94,0.00019452,2]
[368286108,1751092243635,-460.0,0.00019452,2]
[368286109,1751092243644,-442.89393582,0.00019452,2]
[368286110,1751092243653,-460.0,0.00019452,2]
[368286112,1751092243662,-460.0,0.00019452,2]
[368286115,1751092243671,-460.0,0.00019452,2]
[368286117,1751092243680,-1763.75,0.00019452,2]
[368286119,1751092243690,-1417.63,0.00019452,2]
[368286121,1751092243699,-404.54385434,0.00019452,2]
[368286124,1751092243708,-1517.54,0.00019452,2]
[368286126,1751092243719,-24900.0,0.00019563,2]
[368286127,1751092243729,-503.52306527,0.000196,2]
[368286128,1751092243738,-500.0,0.000196,2]
[368286130,1751092243747,-500.0,0.00019697,2]
[368286131,1751092243757,-500.0,0.00019697,2]
[368286132,1751092243766,-500.0,0.00019697,2]
[368286133,1751092243779,-264.30474659,0.00019697,2]
[368286134,1751092243788,-501.47527516,0.00019697,2]
[368286135,1751092243797,-174.83310269,0.00019697,2]
[368286136,1751092243806,-443.30882593,0.00019704,2]
[368286137,1751092243815,-500.0,0.00019719,2]
[368286138,1751092243824,-460.0,0.00019726,2]
[368286139,1751092243834,-259.00043933,0.00019726,2]
[368286140,1751092243844,-460.0,0.00019726,2]
[368286141,1751092243854,-460.0,0.00019726,2]
[368286142,1751092243864,-460.0,0.00019726,2]
[368286143,1751092243873,-460.0,0.00019726,2]
[368286144,1751092243883,-460.0,0.00019726,2]
[368286145,1751092243892,-460.0,0.00019726,2]
[368286146,1751092243902,-460.0,0.00019726,2]
[368286147,1751092243911,-460.0,0.00019726,2]
[368286148,1751092243921,-544.66,0.00019726,2]
[368286149,1751092243931,-460.0,0.00019726,2]
[368286150,1751092243940,-460.0,0.00019726,2]
[368286151,1751092243949,-460.0,0.00019726,2]
[368286152,1751092243958,-460.0,0.00019726,2]
[368286153,1751092243967,-783.34,0.00019726,2]
[368286154,1751092243976,-454.14387227,0.00019726,2]
[368286155,1751092243985,-460.0,0.00019726,2]
[368286156,1751092243994,-460.0,0.00019726,2]
[368286157,1751092244004,-460.0,0.00019726,2]
[368286158,1751092244014,-460.0,0.00019726,2]
[368286159,1751092244023,-460.0,0.00019726,2]
[368286160,1751092244032,-460.0,0.00019726,2]
[368286161,1751092244041,-460.0,0.00019726,2]
[368286162,1751092244051,-460.0,0.00019726,2]
[368286163,1751092244060,-515.63884315,0.00019726,2]
[368286164,1751092244069,-465.20090635,0.00019726,2]
[368286165,1751092244078,-460.0,0.00019726,2]
[368286166,1751092244088,-460.0,0.00019726,2]
[368286167,1751092244097,-460.0,0.00019726,2]
[368286168,1751092244106,-460.0,0.00019726,2]
[368286169,1751092244115,-460.0,0.00019726,2]
[368286170,1751092244124,-173.86964263,0.00019726,2]
[368286171,1751092244134,-855.13,0.00019726,2]
[368286172,1751092244143,-1621.43,0.00019726,2]
[368286173,1751092244151,-460.0,0.00019726,2]
[368286174,1751092244161,-460.0,0.00019726,2]
[368286175,1751092244169,-460.0,0.00019726,2]
[368286176,1751092244179,-963.72,0.00019726,2]
[368286177,1751092244188,-390.0,0.00019726,2]
[368286178,1751092244197,-460.0,0.00019726,2]
[368286179,1751092244207,-460.0,0.00019726,2]
[368286180,1751092244216,-460.0,0.00019726,2]
[368286181,1751092244225,-460.0,0.00019726,2]
[368286182,1751092244234,-460.0,0.00019726,2]
[368286183,1751092244243,-460.0,0.00019726,2]
[368286184,1751092244252,-460.0,0.00019726,2]
[368286185,1751092244262,-460.0,0.00019726,2]
[368286186,1751092244271,-460.0,0.00019726,2]
[368286187,1751092244280,-2847.84,0.00019726,2]
[368286188,1751092244291,-460.0,0.00019726,2]
[368286189,1751092244301,-762.68,0.00019726,2]
[368286190,1751092244310,-688.06,0.00019726,2]
[368286191,1751092244320,-637.58,0.00019726,2]
[368286192,1751092244330,-460.0,0.00019726,2]
[368286193,1751092244340,-500.0,0.00019726,2]
[368286194,1751092244349,-2645.71,0.00019726,2]
[368286195,1751092244359,-460.0,0.00019726,2]
[368286196,1751092244368,-460.0,0.00019726,2]
[368286197,1751092244378,-460.0,0.00019726,2]
[368286198,1751092244387,-460.0,0.00019726,2]
[368286199,1751092244397,-460.0,0.00019726,2]
[368286200,1751092244407,-749.34,0.00019726,2]
[368286201,1751092244416,-460.0,0.00019726,2]
[368286202,1751092244426,-474.73564748,0.00019726,2]
[368286203,1751092244436,-2283.61,0.00019726,2]
[368286204,1751092244446,-460.0,0.00019726,2]
[368286205,1751092244455,-460.0,0.00019726,2]
[368286206,1751092244465,-460.0,0.00019726,2]
[368286207,1751092244474,-460.0,0.00019726,2]
[368286208,1751092244484,-460.0,0.00019726,2]
[368286209,1751092244493,-1062.61,0.00019726,2]
[368286210,1751092244503,-460.0,0.00019726,2]
[368286211,1751092244512,-460.0,0.00019726,2]
[368286212,1751092244522,-460.0,0.00019726,2]
[368286213,1751092244531,-460.0,0.00019726,2]
[368286214,1751092244541,-460.0,0.00019726,2]
[368286215,1751092244550,-460.0,0.00019726,2]
[368286216,1751092244561,-503.12,0.00019726,2]
[368286217,1751092244571,-460.0,0.00019726,2]
[368286218,1751092244580,-460.0,0.00019726,2]
[368286219,1751092244590,-546.11,0.00019726,2]
[368286220,1751092244599,-460.0,0.00019726,2]
[368286221,1751092244608,-2827.27,0.00019726,2]
[368286222,1751092244618,-439.65498581,0.00019726,2]
[368286223,1751092244627,-460.0,0.00019726,2]
[368286224,1751092244637,-460.0,0.00019726,2]
[368286225,1751092244646,-460.0,0.00019726,2]
[368286226,1751092244656,-2063.9,0.00019726,2]
[368286227,1751092244665,-597.96,0.00019726,2]
[368286228,1751092244674,-1025.68,0.00019726,2]
[368286229,1751092244683,-460.0,0.00019726,2]
[368286230,1751092244692,-460.0,0.00019726,2]
[368286231,1751092244702,-460.0,0.00019726,2]
[368286232,1751092244711,-460.0,0.00019726,2]
[368286233,1751092244721,-3087.12,0.00019726,2]
[368286234,1751092244730,-758.94,0.00019726,2]
[368286235,1751092244739,-460.0,0.00019726,2]
[368286236,1751092244749,-460.0,0.00019726,2]
[368286237,1751092244758,-460.0,0.00019726,2]
[368286238,1751092244771,-460.0,0.00019726,2]
[368286239,1751092244789,-1845.16,0.00019726,2]
[368286240,1751092244798,-1876.63,0.00019726,2]
[368286241,1751092244807,-460.0,0.00019726,2]
[368286242,1751092244817,-460.0,0.00019726,2]
[368286243,1751092244826,-460.0,0.00019726,2]
[368286244,1751092244836,-3961.88,0.00019726,2]
[368286245,1751092244845,-460.0,0.00019726,2]
[368286246,1751092244855,-425.25525534,0.00019726,2]
[368286247,1751092244865,-738.64,0.00019726,2]
[368286248,1751092244875,-467.43720755,0.00019726,2]
[368286249,1751092244884,-1261.08,0.00019726,2]
[368286250,1751092244894,-460.0,0.00019726,2]
[368286251,1751092244903,-460.0,0.00019726,2]
[368286252,1751092244913,-1780.21,0.00019726,2]
[368286253,1751092244922,-460.0,0.00019726,2]
[368286254,1751092244931,-460.0,0.00019726,2]
[368286255,1751092244940,-830.04,0.00019726,2]
[368286256,1751092244950,-477.84553395,0.00019726,2]
[368286257,1751092244959,-460.0,0.00019726,2]
[368286258,1751092244969,-470.95122266,0.00019726,2]
[368286259,1751092244978,-571.40013728,0.00019726,2]
[368286260,1751092244987,-493.72,0.00019726,2]
[368286261,1751092244997,-460.0,0.00019726,2]